Workbook

Sheet от 1года до 3 лет
A1: Утверждаю | H1: Согласовано
A2: Директор ООО"АБК - Пэймент" | H2: Руководитель дошкольной образовательной
A3: Рахматуллин Р.Р. | H3: организации
E6: Примерное 10-дневное меню
E7: для организации питания детей в дошкольных учреждениях
E8: с 12 - часовым пребыванием от 1 года до 3 лет
A9: День 1 - ый
A10: Наименование блюд и | C10: Масса | D10: Кол - во | E10: Кол - во | F10: Пищевые вещества | I10: Энергетическая | J10: витамин | K10: Сборник
A11: продуктов | C11: порции | D11: (в гр ) | E11: (в гр ) | I11: ценность | K11: рецептур
D12: брутто | E12: нетто | F12: белки | G12: жиры | H12: угл-ды | I12: Ккал | J12: С
B13: ЗАВТРАК
A14: Каша кукурузная молочная с маслом сливочным | C14: 140/4 | F14: 5.32 | G14: 5.60 | H14: 35.51 | I14: 214.00 | J14: 0.67 | K14: ТТК № 2Д
B15: Крупа кукурузная | D15: 18 | E15: 18
B16: Молоко | D16: 70 | E16: 70
B17: Вода | D17: 53 | E17: 53
B18: Сахар | D18: 2 | E18: 2
B19: соль иодированная | D19: 0.4 | E19: 0.4
B20: Масло сливочное | D20: 4 | E20: 4
A21: Кофейный напиток с молоком | C21: 180/6 | F21: 2.85 | G21: 2.41 | H21: 10.35 | I21: 74.58 | J21: 1.17 | K21: №414 Дели 2016
B22: Кофейный напиток | D22: 2.50 | E22: 2.50
B23: Сахар | D23: 6.00 | E23: 6.00
B24: Молоко | D24: 90.00 | E24: 90.00
B25: Вода | D25: 108.00 | E25: 108.00
A26: Бутерброд с маслом сливочным | C26: 25/5 | F26: 1.92 | G26: 4.36 | H26: 12.92 | I26: 98.50 | K26: №1 Дели 2016
B27: Батон нарезной | D27: 25 | E27: 25
B28: Масло сливочное | D28: 5 | E28: 5
A29: Итого: | C29: 360 | F29: =F26+F21+F14 -> 10.09 | G29: =G26+G21+G14 -> 12.37 | H29: 58.78 | I29: 387.08 | J29: 1.84
B30: 2 - ой ЗАВТРАК
A31: Кисломолочный напиток | C31: 150/2 | F31: 4.35 | G31: 3.75 | H31: 8.00 | I31: 83.00 | J31: 1.05 | K31: №420 Сб дошк 2016
A32: (Кефир,ряженка,катык,напиток ацидофильный) | B32: кисломолочный напиток | D32: 155 | E32: 150
B33: сахар | D33: 2 | E33: 2
A34: Итого: | C34: 152 | F34: =F31 -> 4.35 | G34: =G31 -> 3.75 | H34: 8.00 | I34: 83.00 | J34: 1.05
B35: ОБЕД
A36: Огурцы свежие порционно | C36: 30 | F36: 0.21 | G36: 0.03 | H36: 0.57 | I36: 3.60 | J36: 1.47 | K36: №71 СБ шк 2017 Дели
B37: огурцы свежие | D37: 30.60 | E37: 30.00
A38: Суп гороховый с картофелем, на курином бульоне, с гренками | C38: 150/10 | F38: 4.54 | G38: 3.32 | H38: 17.53 | I38: 125.77 | J38: 3.50 | K38: СБ дошк.2016 №87
B39: Картофель | D39: 40.05 | E39: 30
B40: Горох колотый | D40: 12.15 | E40: 12
B41: лук репчатый | D41: 7.2 | E41: 6
B42: Морковь | D42: 9.6 | E42: 7.5
B43: соль иодированная | D43: 0.5 | E43: 0.5
B44: Масло растительное | D44: 3 | E44: 3
B45: Бульон | D45: 105 | E45: 105
B46: гренки пшеничные: | E46: 10
B47: хлеб пшеничный | D47: 18.75 | E47: 15.75
A48: Плов из отварной птицы | C48: 150 | F48: 12.71 | G48: 7.85 | H48: 26.80 | I48: 229.00 | J48: 4.52 | K48: №321 сбдошк2016
B49: цыплята-бройлеры с/м | D49: 58.50 | E49: 55.2
B50: масса отварной птицы | E50: 24.0
B51: масло сливочное | D51: 5.0 | E51: 5.0
B52: Лук репчатый | D52: 8.9 | E52: 7.5
B53: Морковь | D53: 12.5 | E53: 10.0
B54: Крупа рисовая | D54: 32.0 | E54: 32.0
B55: вода | D55: 65.0 | E55: 65.0
B56: соль иодированная | D56: 0.5 | E56: 0.5
B57: масса гарнира | E57: 126.0
A58: Компот из урюка | C58: 150 | F58: 0.35 | G58: 0.02 | H58: 13.83 | I58: 56.83 | J58: 0.00 | K58: №394 СБ дошк 2016
B59: урюк | D59: 15.3 | E59: 15.0
B60: масса отварных сухофруктов | E60: 24.0
B61: Вода | D61: 152 | E61: 152.0
B62: сахар | D62: 5 | E62: 5
A63: Хлеб ржаной | C63: 35 | D63: 35 | E63: 35 | F63: 2.31 | G63: 0.42 | H63: 13.85 | I63: 69.23 | K63: табл 6 стр 144,Дели + 2012
A64: Итого: | C64: =C36+160+C48+C58+35 -> 525 | F64: =F63+F58+F48+F38+F36 -> 20.12 | G64: =G63+G58+G48+G38+G36 -> 11.63 | H64: =H63+H58+H48+H38+H36 -> 72.57 | I64: =I63+I58+I48+I38+I36 -> 484.43 | J64: =J63+J58+J48+J38+J36 -> 9.49
B65: УПЛОТНЕННЫЙ ПОЛДНИК
A66: Фрукты свежие | C66: 100 | D66: 100 | E66: 100 | F66: 0.40 | G66: 0.40 | H66: 9.80 | I66: 47.00 | J66: 10.00 | K66: №386 СБ
A67: (яблоки,или апельсин, или банан,или мандарин) | K67: дошк.2016
A68: Котлеты рыбные | C68: 50 | F68: 6.41 | G68: 3.41 | H68: 5.58 | I68: 72.63 | J68: 0.33 | K68: №234 сб шк 2017
B69: рыба (минтай с/м БГ) | D69: 45.22 | E69: 33.0
B70: соль иодированная | D70: 0.5 | E70: 0.5
B71: хлеб пшеничный | D71: 9.0 | E71: 9.0
B72: молоко | D72: 13.00 | E72: 13.0
B73: сухари панировочные | D73: 5.0 | E73: 5.0
B74: масса полуфабриката | E74: 58.0
B75: масло растительное | D75: 2.0 | E75: 2.0
A76: Пюре Картофельное | C76: 120 | F76: 2.45 | G76: 3.84 | H76: 16.35 | I76: 109.80 | J76: 14.53 | K76: № 339 СБ дошк 2016
B77: Картофель | D77: 136.80 | E77: 102.60
B78: Молоко | D78: 18.96 | E78: 18.00
B79: Масло сливочное | D79: 4.20 | E79: 4.20
B80: соль иодированная | D80: 0.45 | E80: 0.45
A81: Чай с сахаром | C81: 150/5 | F81: 0.050 | G81: 0.020 | H81: 5.020 | I81: 20.080 | J81: 0.030 | K81: №411 Дели2016
B82: чай весовой | D82: 0.4 | E82: 0.4
B83: Сахар | D83: 5 | E83: 5
B84: Вода | D84: 150 | E84: 150
A85: Кондитерские изделия | B85: вафли | C85: 20 | D85: 20.00 | E85: 20.00 | F85: 0.75 | G85: 6.10 | H85: 12.50 | I85: 108.50 | K85: табл 10 стр 202, Дели +, 2012
A86: Хлеб пшеничный | C86: 20 | D86: 20.00 | E86: 20.00 | F86: 1.52 | G86: 0.16 | H86: 9.84 | I86: 47.00 | J86: 0.00 | K86: табл 6 стр 134,Дели + 2012
A87: Итого: | C87: =C86+C85+155+C76+C68+C66 -> 465 | F87: =F86+F85+F81+F76+F68+F66 -> 11.58 | G87: =G86+G85+G81+G76+G68+G66 -> 13.93 | H87: 59.09 | I87: 405.01 | J87: 24.89
A88: ВСЕГО: | C88: =C29+C34+C64+C87 -> 1502 | F88: =F29+F34+F64+F87 -> 46.14 | G88: =G29+G34+G64+G87 -> 41.68 | H88: =H29+H34+H64+H87 -> 198.45 | I88: =I29+I34+I64+I87 -> 1359.52 | J88: =J29+J34+J64+J87 -> 37.27
A90: День 2- ой
A91: Наименование блюд и | C91: Масса | D91: Кол - во | E91: Кол - во | F91: Пищевые вещества | I91: Энергетическая | J91: Витамин | K91: Сборник
A92: продуктов | C92: порции | D92: (в гр ) | E92: (в гр ) | I92: ценность | K92: рецептур
D93: брутто | E93: нетто | F93: белки | G93: жиры | H93: угл-ды | I93: Ккал | J93: С
B94: ЗАВТРАК
A95: Каша полбяная молочная с маслом сливочным | C95: 140/3 | F95: 3.76 | G95: 6.13 | H95: 22.96 | I95: 162.00 | J95: 0.67 | K95: ТТК №1Д
B96: Крупа полбяная | D96: 18 | E96: 18
B97: Молоко | D97: 70 | E97: 70
B98: вода | D98: 53 | E98: 53
B99: Сахар | D99: 2 | E99: 2
B100: соль иодированная | D100: 0.4 | E100: 0.4
B101: Масло сливочное | D101: 3 | E101: 3
A102: Какао с молоком | C102: 180/6 | F102: 3.67 | G102: 3.19 | H102: 10.87 | I102: 90.78 | J102: 1.43 | K102: №416 Дели2016
B103: Какао-порошок | D103: 2.00 | E103: 2.00
B104: Сахар | D104: 6.00 | E104: 6.00
B105: Молоко | D105: 110.00 | E105: 110.00
B106: Вода | D106: 80.00 | E106: 80.00
A107: Бутерброд с сыром, маслом сливочным | C107: 25/5/5 | F107: 2.53 | G107: 5.69 | H107: 12.92 | I107: 115.67 | J107: 0.04 | K107: №3 сб дошк2016
B108: Батон нарезной | D108: 25 | E108: 25
B109: Сыр | D109: 5.1 | E109: 5
B110: Масло сливочное | D110: 5 | E110: 5
A111: Итого: | C111: 364 | F111: =F107+F102+F95 -> 9.96 | G111: =G107+G102+G95 -> 15.01 | H111: 46.75 | I111: 368.45 | J111: 2.14
B112: 2 - ой ЗАВТРАК
A113: Кисломолочный напиток | C113: 150 | F113: 4.35 | G113: 3.75 | H113: 6.30 | I113: 76.50 | J113: 0.45 | K113: №420 Сб дошк 2016
A114: (кефир,ряженка,катык,напиток ацидофильный) | B114: кисломолочный напиток | D114: 155 | E114: 150
A115: Итого: | C115: 150 | F115: =F113 -> 4.35 | G115: =G113 -> 3.75 | H115: 6.30 | I115: 76.50 | J115: 0.45
B116: ОБЕД
A117: Салат из моркови с сахаром (молодой урожай) | C117: 40 | F117: 0.50 | G117: 0.04 | H117: 4.65 | I117: 20.92 | J117: 1.92 | K117: №42, Сб дошк 2016
B118: морковь | D118: 48.00 | E118: 38.40
B119: сахар | D119: 2.00 | E119: 2.00
A120: Борщ со свежей капустой, картофелем на курином бульоне, со сметаной | C120: 150/7 | F120: 1.26 | G120: 4.00 | H120: 6.81 | I120: 73.58 | J120: 6.43 | K120: №63,сбдошк2016
B121: Капуста свежая | D121: 15.0 | E121: 12.0
B122: Картофель | D122: 15.96 | E122: 12.0
B123: Морковь | D123: 7.5 | E123: 6.0
B124: Лук репчатый | D124: 7.14 | E124: 6.0
B125: Свекла | D125: 30.72 | E125: 24.0
B126: Сахар | D126: 0.8 | E126: 0.8
B127: Масло растительное | D127: 3.0 | E127: 3.0
B128: соль иодированная | D128: 0.5 | E128: 0.5
B129: Бульон | D129: 120 | E129: 120.0
B130: Сметана | D130: 7.0 | E130: 7.0
B131: Томатная паста | D131: 0.8 | E131: 0.8
A132: Биточки "Домашние" | C132: 50 | F132: 7.41 | G132: 5.79 | H132: 10.68 | I132: 110.54 | J132: 0.05 | K132: Акт проработки от 25.12.2018 №569
B133: цыплята - бройлеры с/м | D133: 60.68 | E133: 39.4
B134: или фарш куриный | D134: 41.37 | E134: 39.4
B135: морковь | D135: 11.85 | E135: 9.4
B136: Лук репчатый | D136: 14.4 | E136: 12
B137: Масло растительное | D137: 1 | E137: 1
B138: масса припущенного лука | E138: 6
B139: соль иодированная | D139: 0.4 | E139: 0.4
B140: яйцо | D140: 0.6 | E140: 0.5
B141: Мука пшеничная | D141: 3.75 | E141: 3.75
B142: масса полуфабриката | E142: 59
B143: масло растительное | D143: 2 | E143: 2
A144: Каша гречневая рассыпчатая с овощами с маслом сливочным | C144: 110/2 | F144: 3.21 | G144: 1.62 | H144: 22.36 | I144: 116.60 | J144: 0.41 | K144: №180, сб дошк2016
B145: крупа гречневая | D145: 47.6 | E145: 47.6
B146: вода питьевая | D146: 71.0 | E146: 71.0
B147: соль иодированная | D147: 0.3 | E147: 0.3
B148: масса каши | E148: 100.0
B149: морковь | D149: 16.5 | E149: 13.2
B150: лук репчатый | D150: 2.0 | E150: 1.7
B151: масса каши с овощами | E151: 110.0
B152: масло сливочное | D152: 2.0 | E152: 2.0
A153: Напиток из сухофруктов | C153: 150 | F153: 0.50 | G153: 0.07 | H153: 14.00 | I153: 60 | J153: 0.54 | K153: №394 Сб дошк 2016
B154: сухофрукты | D154: 12.75 | E154: 12.50
B155: Сахар | D155: 5.00 | E155: 5.00
B156: вода | D156: 152.00 | E156: 152.00
A157: Хлеб пшеничный | C157: 20 | D157: 20 | E157: 20 | F157: 1.52 | G157: 0.16 | H157: 9.84 | I157: 47.00 | J157: 0.00 | K157: табл 6 стр 134,Дели + 2012
A158: Хлеб ржаной | C158: 35 | D158: 35 | E158: 35 | F158: 2.31 | G158: 0.42 | H158: 13.85 | I158: 69.23 | K158: табл 6 стр 144,Дели + 2012
A159: Итого: | C159: =C117+157+C132+112+C153+C157+C158 -> 564 | F159: =F158+F157+F153+F144+F132+F120+F117 -> 16.71 | G159: =G158+G157+G153+G144+G132+G120+G117 -> 12.09 | H159: 82.18 | I159: 497.87 | J159: 9.35
B160: УПЛОТНЕННЫЙ ПОЛДНИК
A161: Сок в инд упаковке | C161: 125 | D161: 125 | E161: 125 | F161: 0.63 | G161: 0.00 | H161: 12.63 | I161: 53.00 | J161: 2.50 | K161: №418 Дели2016
A162: Запеканка творожная с повидлом | C162: 110/20 | F162: 19.33 | G162: 16.98 | H162: 21.93 | I162: 317.80 | J162: 0.49 | K162: № 251 сб дошк 2016
B163: Творог | D163: 103.2 | E163: 101.2
B164: крупа манная | D164: 6.6 | E164: 6.6
B165: Яйцо | D165: 5.28 | E165: 4.4
B166: Сахар | D166: 8.8 | E166: 8.8
B167: Сметана | D167: 4.4 | E167: 4.4
B168: Масло сливочное | D168: 4.4 | E168: 4.4
B169: Сухари панировочные | D169: 4.4 | E169: 4.4
B170: соль иодированная | D170: 0.55 | E170: 0.55
B171: повидлом | D171: 20.40 | E171: 20.00
A172: Чай с сахаром и лимоном | C172: 150/5/5 | F172: 0.10 | G172: 0.02 | H172: 5.17 | I172: 21.78 | J172: 2.24 | K172: №412,410 Дели 2016
B173: чай весовой | D173: 0.8 | E173: 0.8
B174: Сахар | D174: 5 | E174: 5
B175: лимон | D175: 5.55 | E175: 5
B176: Вода | D176: 150.0 | E176: 150.0
A177: Булочка дорожная | C177: 35 | F177: 2.73 | G177: 4.90 | H177: 18.25 | I177: 126.70 | K177: №453 сб дошк2016
B178: Мука пшеничная | D178: 21.35 | E178: 21.00
B179: мука пшеничная на подпыл | D179: 0.70 | E179: 0.70
B180: Сахар | D180: 4.20 | E180: 4.20
B181: Масло сливочное | D181: 4.55 | E181: 4.55
B182: соль иодированная | D182: 0.21 | E182: 0.21
B183: дрожжи сухие | D183: 0.14 | E183: 0.14
B184: вода | D184: 10.70 | E184: 10.70
B185: масса полуфабриката | E185: 39.90
B186: для крошки:
B187: мука пшеничная | D187: 0.84 | E187: 0.84
B188: масло сливочное | D188: 0.70 | E188: 0.70
B189: масса крошки | E189: 1.40
B190: масло растительное для смазки изделй | D190: 0.70 | E190: 0.70
A191: Итого: | C191: =C177+150+10+130+C161 -> 450 | F191: =F177+F172+F162+F161 -> 22.79 | G191: =G177+G172+G162+G161 -> 21.90 | H191: 57.98 | I191: 519.28 | J191: 5.23
A192: ВСЕГО: | C192: =C111+C115+C159+C191 -> 1528 | F192: =F111+F115+F159+F191 -> 53.81 | G192: =G111+G115+G159+G191 -> 52.75 | H192: =H111+H115+H159+H191 -> 193.21 | I192: =I111+I115+I159+I191 -> 1462.10 | J192: =J111+J115+J159+J191 -> 17.17
A194: День 3 - ий
A195: Наименование блюд и | C195: Масса | D195: Кол - во | E195: Кол - во | F195: Пищевые вещества | I195: Энергетическая | J195: Витамин | K195: Сборник
A196: продуктов | C196: порции | D196: (в гр ) | E196: (в гр ) | I196: ценность | K196: рецептур
D197: брутто | E197: нетто | F197: белки | G197: жиры | H197: угл-ды | I197: Ккал | J197: С
B198: ЗАВТРАК
A199: Каша "Дружба" молочная с маслом сливочным | C199: 140/3 | F199: 4.22 | G199: 4.92 | H199: 23.38 | I199: 155.60 | J199: 0.60 | K199: ТТК №7Д
B200: Крупа рисовая | D200: 10 | E200: 10
B201: Крупа пшенная | D201: 7.5 | E201: 7.5
B202: Молоко | D202: 75 | E202: 75
B203: Вода | D203: 48 | E203: 48
B204: Сахар | D204: 2 | E204: 2
... 819 more rows

Sheet от 3 до 7 лет
A1: Утверждаю | H1: Согласовано
A2: Директор ООО"АБК - Пэймент" | H2: Руководитель дошкольной образовательной
A3: Рахматуллин Р.Р. | H3: организации
C5: Примерное 10-дневное меню
C6: для организации питания детей в дошкольных учреждениях
C7: с 12 - часовым пребыванием от 3 до 7 лет
A9: День 1 - ый
A10: Наименование блюд и | C10: Масса | D10: Кол - во | E10: Кол - во | F10: Пищевые вещества | I10: Энергетическая | J10: Витамин | K10: Сборник рецептур
A11: продуктов | C11: порции | D11: (в гр ) | E11: (в гр ) | I11: ценность
D12: брутто | E12: нетто | F12: белки | G12: жиры | H12: угл-ды | I12: Ккал | J12: С
B13: ЗАВТРАК
A14: Каша кукурузная молочная с маслом сливочным | C14: 180/5 | F14: 6.84 | G14: 7.10 | H14: 45.66 | I14: 274.20 | J14: 0.86 | K14: ТТК №2Д
B15: Крупа кукурузная | D15: 22.50 | E15: 22.50
B16: Молоко | D16: 90.00 | E16: 90.00
B17: Вода | D17: 68.00 | E17: 68.00
B18: Сахар | D18: 2.50 | E18: 2.50
B19: соль иодированная | D19: 0.50 | E19: 0.50
B20: Масло сливочное | D20: 5.00 | E20: 5.00
A21: Кофейный напиток с молоком | C21: 180/6 | F21: 2.85 | G21: 2.41 | H21: 10.35 | I21: 74.58 | J21: 1.17 | K21: №414 Дели 2016
B22: Кофейный напиток | D22: 2.50 | E22: 2.50
B23: Сахар | D23: 6.00 | E23: 6.00
B24: Молоко | D24: 90.00 | E24: 90.00
B25: Вода | D25: 108.00 | E25: 108.00
A26: Бутерброд с маслом сливочным | C26: 30/5 | F26: 2.29 | G26: 4.50 | H26: 15.49 | I26: 111.68 | K26: №1 Дели2016
B27: Батон нарезной | D27: 30.00 | E27: 30.00
B28: Масло сливочное | D28: 5.00 | E28: 5.00
A29: Итого: | C29: 406 | F29: =F26+F21+F14 -> 11.98 | G29: =G26+G21+G14 -> 14.01 | H29: 71.50 | I29: 460.46 | J29: 2.03
B30: 2 - ой ЗАВТРАК
A31: Кисломолочный напиток | C31: 180/3 | F31: 5.22 | G31: 4.50 | H31: 10.19 | I31: 102.00 | J31: 1.26 | K31: №420 СБ дошк 2016
A32: (Кефир,ряженка,катык,напиток ацидофильный) | B32: кисломолочный напиток | D32: 185.00 | E32: 180.00
B33: сахар | D33: 3.00 | E33: 3.00
A34: Итого: | C34: 183 | F34: =F31 -> 5.22 | G34: =G31 -> 4.50 | H34: 10.19 | I34: 102.00 | J34: 1.26
B35: ОБЕД
A36: Огурцы свежие порционно | C36: 50 | F36: 0.35 | G36: 0.05 | H36: 0.95 | I36: 6.00 | J36: 2.45 | K36: №71 СБ шк 2017 Дели
B37: огурцы свежие | D37: 51.00 | E37: 50.00
A38: Суп гороховый с картофелем на курином бульоне, с гренками | C38: 180/10 | F38: 5.20 | G38: 3.95 | H38: 19.51 | I38: 143.56 | J38: 4.19 | K38: №87, сб дошк2016
B39: Картофель | D39: 53.20 | E39: 40.00
B40: Горох | D40: 16.20 | E40: 16.00
B41: Морковь | D41: 12.80 | E41: 10.00
B42: Лук репчатый | D42: 9.60 | E42: 8.00
B43: Масло растительное | D43: 4.00 | E43: 4.00
B44: соль иодированная | D44: 0.60 | E44: 0.60
B45: Бульон | D45: 140.00 | E45: 140.00
B46: гренки пшеничные: | E46: 10
B47: хлеб пшеничный | D47: 18.75 | E47: 15.75
A48: Плов из отварной птицы | C48: 200 | F48: 11.19 | G48: 10.93 | H48: 31.80 | I48: 282.55 | J48: 0.18 | K48: №321 сбдошк2016
B49: цыплята-бройлеры с/м | D49: 78.00 | E49: 73.6
B50: масса отварной птицы | E50: 32.0
B51: масло сливочное | D51: 8.0 | E51: 8.0
B52: Лук репчатый | D52: 11.9 | E52: 10.00
B53: Морковь | D53: 16.3 | E53: 13.00
B54: Крупа рисовая | D54: 55.0 | E54: 55.0
B55: вода | D55: 86.0 | E55: 86.0
B56: соль иодированная | D56: 0.8 | E56: 0.8
B57: масса гарнира | E57: 168.0
A58: Компот из урюка | C58: 180/6 | F58: 0.40 | G58: 0.02 | H58: 16.60 | I58: 68.20 | J58: 2.44 | K58: №394 сб дошк 2016
B59: урюк | D59: 18.4 | E59: 18.0
B60: масса отварных сухофруктов | E60: 28.8
B61: Сахар | D61: 6 | E61: 6.0
B62: вода | D62: 183 | E62: 183.0
A63: Хлеб ржаной | C63: 45 | D63: 45.00 | E63: 45.00 | F63: 2.97 | G63: 0.54 | H63: 17.84 | I63: 89.19 | K63: табл 6 стр 144,Дели + 2012
A64: Итого: | C64: =C36+190+C48+186+C63 -> 671 | F64: =F63+F58+F48+F38+F36 -> 20.11 | G64: =G63+G58+G48+G38+G36 -> 15.49 | H64: =H63+H58+H48+H38+H36 -> 86.70 | I64: =I63+I58+I48+I38+I36 -> 589.50 | J64: =J63+J58+J48+J38+J36 -> 9.26
B65: УПЛОТНЕННЫЙ ПОЛДНИК
A66: Фрукты свежие | C66: 100 | D66: 100 | E66: 100 | F66: 0.40 | G66: 0.40 | H66: 9.80 | I66: 47.00 | J66: 10.00 | K66: №386 СБ
A67: (яблоки,или апельсин, или банан,или мандарин ) | K67: дошк.2016
A68: Котлеты рыбные | C68: 70 | F68: 8.99 | G68: 4.26 | H68: 7.82 | I68: 101.72 | J68: 0.46 | K68: №234 сб шк 2017
B69: рыба (минтай с/м БГ) | D69: 63.30 | E69: 46.2
B70: соль иодированная | D70: 0.7 | E70: 0.7
B71: хлеб пшеничный | D71: 12.6 | E71: 12.6
B72: молоко | D72: 18.20 | E72: 18.2
B73: сухари панировочные | D73: 7.0 | E73: 7.0
B74: масса полуфабриката | E74: 81.0
B75: масло растительное | D75: 3.0 | E75: 3.0
A76: Пюре Картофельное | C76: 140 | F76: 2.86 | G76: 4.48 | H76: 19.08 | I76: 128.10 | J76: 16.96 | K76: № 339 СБ дошк 2016
B77: Картофель | D77: 159.60 | E77: 119.70
B78: Молоко | D78: 22.12 | E78: 21.00
B79: Масло сливочное | D79: 5.00 | E79: 5.00
B80: соль иодированная | D80: 0.52 | E80: 0.52
A81: Чай с сахаром | C81: 180/6 | F81: 0.06 | G81: 0.02 | H81: 6.02 | I81: 24.10 | J81: 0.03 | K81: №411 Дели2016
B82: чай весовой | D82: 0.45 | E82: 0.45
B83: сахар | D83: 6.00 | E83: 6.00
B84: Вода | D84: 180.00 | E84: 180.00
A85: Кондитерское изделие | B85: вафли | C85: 20 | D85: 20.00 | E85: 20.00 | F85: 0.75 | G85: 6.10 | H85: 12.50 | I85: 108.50 | K85: табл 10 стр 202, Дели +, 2012
A86: Хлеб пшеничный | C86: 30 | D86: 30.00 | E86: 30.00 | F86: 2.28 | G86: 0.24 | H86: 14.76 | I86: 70.50 | J86: 0.00 | K86: табл 6 стр 134,Дели + 2012
A87: Итого: | C87: =C86+C85+186+C76+C68+C66 -> 546 | F87: =F86+F85+F81+F76+F68+F66 -> 15.34 | G87: =G86+G85+G81+G76+G68+G66 -> 15.50 | H87: 69.98 | I87: 479.92 | J87: 27.45
A88: ВСЕГО: | C88: =C29+C34+C64+C87 -> 1806 | F88: =F29+F34+F64+F87 -> 52.65 | G88: =G29+G34+G64+G87 -> 49.51 | H88: =H29+H34+H64+H87 -> 238.37 | I88: =I29+I34+I64+I87 -> 1631.88 | J88: =J29+J34+J64+J87 -> 40.00
A90: День 2- ой
A91: Наименование блюд и | C91: Масса | D91: Кол - во | E91: Кол - во | F91: Пищевые вещества | I91: Энергетическая | J91: Витамин | K91: Сборник
A92: продуктов | C92: порции | D92: (в гр ) | E92: (в гр ) | I92: ценность | K92: рецептур
D93: брутто | E93: нетто | F93: белки | G93: жиры | H93: угл-ды | I93: Ккал | J93: С
B94: ЗАВТРАК
A95: Каша полбяная молочная с маслом сливочным | C95: 180/3 | F95: 4.81 | G95: 7.85 | H95: 29.38 | I95: 207.32 | J95: 0.86 | K95: ТТК №1Д
B96: Крупа полбяная | D96: 22.50 | E96: 22.50
B97: Молоко | D97: 90.00 | E97: 90.00
B98: вода | D98: 68.00 | E98: 68.00
B99: Сахар | D99: 2.50 | E99: 2.50
B100: соль иодированная | D100: 0.50 | E100: 0.50
B101: Масло сливочное | D101: 3.00 | E101: 3.00
A102: Какао с молоком | C102: 180/6 | F102: 3.67 | G102: 3.19 | H102: 10.87 | I102: 90.78 | J102: 1.43 | K102: №416 Дели 2016
B103: Какао-порошок | D103: 2.00 | E103: 2.00
B104: Сахар | D104: 6.00 | E104: 6.00
B105: Молоко | D105: 110.00 | E105: 110.00
B106: Вода | D106: 80.00 | E106: 80.00
A107: Бутерброд с сыром, маслом сливочным | C107: 30/5/5 | F107: 3.61 | G107: 5.83 | H107: 15.49 | I107: 128.77 | J107: 0.04 | K107: №3 сб дошк 2010
B108: Батон нарезной | D108: 30.00 | E108: 30.00
B109: Сыр | D109: 5.10 | E109: 5.00
B110: Масло сливочное | D110: 5.00 | E110: 5.00
A111: Итого: | C111: 409 | F111: =F107+F102+F95 -> 12.09 | G111: =G107+G102+G95 -> 16.87 | H111: 55.74 | I111: 426.87 | J111: 2.33
B112: 2 - ой ЗАВТРАК
A113: Кисломолочный напиток | C113: 180 | F113: 5.22 | G113: 4.50 | H113: 7.56 | I113: 91.80 | J113: 0.54 | K113: №420 СБ дошк 2016
A114: (Кефир,ряженка,катык,напиток ацидофильный) | B114: кисломолочный напиток | D114: 185 | E114: 180
A115: Итого: | C115: 180 | F115: =F113 -> 5.22 | G115: =G113 -> 4.50 | H115: 7.56 | I115: 91.80 | J115: 0.54
B116: ОБЕД
A117: Салат из моркови с сахаром (молодой урожай) | C117: 60 | F117: 0.75 | G117: 0.06 | H117: 6.97 | I117: 31.38 | J117: 2.88 | K117: №42, Сб дошк 2016
B118: морковь | D118: 72.00 | E118: 57.60
B119: сахар | D119: 3.00 | E119: 3.00
A120: Борщ со свежей капустой, картофелем на курином бульоне, со сметаной | C120: 180/7 | F120: 1.50 | G120: 4.77 | H120: 8.12 | I120: 87.64 | J120: 7.71 | K120: №63,сбдошк2016
B121: Капуста свежая | D121: 18.75 | E121: 15.00
B122: Картофель | D122: 19.95 | E122: 15.00
B123: Морковь | D123: 12.50 | E123: 10.00
B124: Лук репчатый | D124: 9.60 | E124: 8.00
B125: Свекла | D125: 38.40 | E125: 30.00
B126: Сахар | D126: 0.90 | E126: 0.90
B127: Томат-паста | D127: 1.00 | E127: 1.00
B128: Масло растительное | D128: 3.60 | E128: 3.60
B129: соль иодированная | D129: 0.60 | E129: 0.60
B130: Бульон | D130: 140.00 | E130: 140.00
B131: Сметана | D131: 7.00 | E131: 7.00
A132: Биточки "Домашние" | C132: 70 | F132: 10.38 | G132: 8.10 | H132: 14.95 | I132: 154.75 | J132: 0.07 | K132: Акт проработки от 25.12.2018 №569
B133: цыплята - бройлеры с/м | D133: 84.9 | E133: 55.13
B134: или фарш куриный | D134: 57.89 | E134: 55.13
B135: морковь | D135: 16.53 | E135: 13.12
B136: Лук репчатый | D136: 18 | E136: 15
B137: Масло растительное | D137: 1.5 | E137: 1.5
B138: масса припущенного лука | E138: 8
B139: соль иодированная | D139: 0.57 | E139: 0.57
B140: яйцо | D140: 0.84 | E140: 0.7
B141: Мука пшеничная | D141: 5.25 | E141: 5.25
B142: масса полуфабриката | E142: 82.6
B143: масло растительное | D143: 2.6 | E143: 2.6
A144: Каша гречневая рассыпчатая с овощами с маслом сливочным | C144: 130/3 | F144: 3.80 | G144: 2.37 | H144: 26.43 | I144: 141.96 | J144: 0.48 | K144: №180, сб дошк2016
B145: крупа гречневая | D145: 54.70 | E145: 54.70
B146: вода питьевая | D146: 82.00 | E146: 82.00
B147: соль иодированная | D147: 0.33 | E147: 0.33
B148: масса каши | E148: 115.00
B149: морковь | D149: 22.00 | E149: 17.00
B150: лук репчатый | D150: 2.40 | E150: 2.00
B151: масса каши с овощами | E151: 130.00
B152: масло сливочное | D152: 3.00 | E152: 3.00
A153: Напиток из сухофруктов | C153: 180 | F153: 0.60 | G153: 0.08 | H153: 16.81 | I153: 71.52 | J153: 0.65 | K153: №394 Сб дошк 2016
B154: сухофрукты | D154: 15.30 | E154: 15.00
B155: Сахар | D155: 6.00 | E155: 6.00
B156: вода | D156: 183.00 | E156: 183.00
A157: Хлеб пшеничный | C157: 25 | D157: 25.00 | E157: 25.00 | F157: 1.90 | G157: 0.20 | H157: 12.30 | I157: 58.75 | J157: 0.00 | K157: табл 6 стр 134,Дели + 2012
A158: Хлеб ржаной | C158: 45 | D158: 45.00 | E158: 45.00 | F158: 2.97 | G158: 0.54 | H158: 17.84 | I158: 89.19 | K158: табл 6 стр 144,Дели + 2012
A159: Итого: | C159: =C117+187+C132+133+C153+C157+C158 -> 700 | F159: =F158+F157+F153+F144+F132+F120+F117 -> 21.90 | G159: =G158+G157+G153+G144+G132+G120+G117 -> 16.12 | H159: 103.42 | I159: 635.19 | J159: 11.79
B160: УПЛОТНЕННЫЙ ПОЛДНИК
A161: Сок в инд упаковке | C161: 125 | D161: 125 | E161: 125 | F161: 0.63 | G161: 0.00 | H161: 12.63 | I161: 53.00 | J161: 2.50 | K161: №418 Дели2016
A162: Запеканка творожная с повидлом | C162: 130/20 | F162: 22.82 | G162: 20.06 | H162: 25.55 | I162: 372.60 | J162: 0.54 | K162: №251, сбдошк 2016
B163: Творог | D163: 121.55 | E163: 119.20
B164: Крупа манная | D164: 7.80 | E164: 7.80
B165: Яйцо | D165: 6.50 | E165: 5.42
B166: Сахар | D166: 10.40 | E166: 10.40
B167: Сметана | D167: 5.20 | E167: 5.20
B168: Масло сливочное | D168: 5.20 | E168: 5.20
B169: Сухари панировочные | D169: 5.20 | E169: 5.20
B170: соль иодированная | D170: 0.65 | E170: 0.65
B171: повидло | D171: 20.00 | E171: 20.00
A172: Чай с сахаром и лимоном | C172: 180/6/7 | F172: 0.13 | G172: 0.03 | H172: 6.23 | I172: 26.48 | J172: 2.83 | K172: №410,412 Дели2016
B173: чай весовой | D173: 0.90 | E173: 0.90
B174: Сахар | D174: 6.00 | E174: 6.00
B175: лимон | D175: 8.00 | E175: 7.00
B176: Вода | D176: 180.00 | E176: 180.00
A177: Булочка дорожная | C177: 50 | F177: 3.39 | G177: 6.98 | H177: 26.07 | I177: 181.00 | K177: №453 сб дошк2016
B178: Мука пшеничная | D178: 30.50 | E178: 30.00
B179: мука пшеничная на подпыл | D179: 1.00 | E179: 1.00
B180: Сахар | D180: 6.00 | E180: 6.00
B181: Масло сливочное | D181: 6.50 | E181: 6.50
B182: соль иодированная | D182: 0.30 | E182: 0.30
B183: дрожжи сухие | D183: 0.20 | E183: 0.20
B184: вода | D184: 15.30 | E184: 15.30
B185: масса полуфабриката | E185: 57.00
B186: для крошки:
B187: мука пшеничная | D187: 1.20 | E187: 1.20
B188: масло сливочное | D188: 1.00 | E188: 1.00
B189: масса крошки | E189: 2.00
B190: масло растительное для смазки изделй | D190: 1.00 | E190: 1.00
A191: Итого: | C191: =C177+180+6+7+150+C161 -> 518 | F191: =F177+F172+F162+F161 -> 26.97 | G191: =G177+G172+G162+G161 -> 27.07 | H191: 70.48 | I191: 633.08 | J191: 5.87
A192: ВСЕГО: | C192: =C111+C115+C159+C191 -> 1807 | F192: =F178+F173+F163+F162 -> 22.82 | G192: =G111+G115+G159+G191 -> 64.56 | H192: =H111+H115+H159+H191 -> 237.19 | I192: =I111+I115+I159+I191 -> 1786.94 | J192: =J111+J115+J159+J191 -> 20.53
A194: День 3 - ий
A195: Наименование блюд и | C195: Масса | D195: Кол - во | E195: Кол - во | F195: Пищевые вещества | I195: Энергетическая | J195: Витамин | K195: Сборник
A196: продуктов | C196: порции | D196: (в гр ) | E196: (в гр ) | I196: ценность | K196: рецептур
D197: брутто | E197: нетто | F197: белки | G197: жиры | H197: угл-ды | I197: Ккал | J197: С
B198: ЗАВТРАК
A199: Каша "Дружба" молочная с маслом сливочным | C199: 180/5 | F199: 5.36 | G199: 9.85 | H199: 29.49 | I199: 229.05 | J199: 0.86 | K199: ТТК №7Д
B200: Крупа рисовая | D200: 13.50 | E200: 13.50
B201: Крупа пшенная | D201: 10.00 | E201: 10.00
B202: Молоко | D202: 90.00 | E202: 90.00
B203: Вода | D203: 68.00 | E203: 68.00
B204: Сахар | D204: 2.50 | E204: 2.50
... 813 more rows
